Cogmind - Beta 15 @@@ ROGUE MODE // 2025.06.18 @ 22:36:24 Player: 0Z-4NL Result: Destroyed by VH-UBT(R) with Subdweller Laser Performance ------------- Evolutions (0) 0 Regions Visited (2) 400 Robots Destroyed (30) 150 Value Destroyed (708) 708 Prototype IDs (0) 0 Alien Tech Used (0) 0 Bonus (0) 0 TOTAL SCORE: 1258 Bonus ------- None Cogmind --------- Core Integrity 0/250 Matter 258/300 Energy 93/100 System Corruption 0% Temperature Cool (6) Movement Treading (240) Ox1 Location -10/Subcaves Parts ------- > --- POWER (1) -------- (None) > --- PROPULSION (2) --- Light Treads Light Treads > --- UTILITY (2) ------ High-capacity Storage Unit > --- WEAPON (2) ------- Light Assault Rifle > --- INVENTORY (20) --- Light Ion Engine Light Treads Aluminum Leg Aluminum Leg Aluminum Leg Aluminum Leg Aluminum Leg Aluminum Leg Heat Sink Heat Sink Medium Storage Unit Large Storage Unit Large Matter Pod (150) Utility Shielding EM Pulse Gun Light Assault Rifle Light Cannon Grenade Launcher Peak State ------------ > --- POWER ------------ Ion Engine > --- PROPULSION ------- Light Treads Compact Wheel > --- UTILITY ---------- High-capacity Storage Unit Seismic Detector > --- WEAPON ----------- Light Assault Rifle Light Assault Rifle > --- INVENTORY -------- Light Ion Engine Light Treads Light Treads Light Treads Aluminum Leg Aluminum Leg Aluminum Leg Aluminum Leg Aluminum Leg Aluminum Leg Heat Sink Heat Sink Medium Storage Unit Large Storage Unit Large Matter Pod Utility Shielding EM Pulse Gun Light Assault Rifle Light Cannon Grenade Launcher [Rating: 9] Favorites ----------- Power Ion Engine Engine Ion Engine Propulsion Light Treads Treads Light Treads Leg Aluminum Leg Wheel Compact Wheel Utility Seismic Detector Device Seismic Detector Storage High-capacity Storage Unit Weapon Light Assault Rifle Energy Gun Small Laser Ballistic Gun Light Assault Rifle Launcher Grenade Launcher Build | -11 -10 -10 ------- Run | Yrd Mat Sub Slots Evolved . | . . . Power . | . . . Propulsion . | . . . Utility . | . . . Weapon . | . . . Parts Attached 14 | 3 10 1 Power 1 | . 1 . Engine 1 | . 1 . Core . | . . . Reactor . | . . . Propulsion 4 | . 3 1 Treads 3 | . 2 1 Leg . | . . . Wheel 1 | . 1 . Hover . | . . . Flight . | . . . Utility 3 | 1 2 . Device 1 | 1 . . Storage 2 | . 2 . Processor . | . . . Hackware . | . . . Protection . | . . . Artifact . | . . . Weapon 6 | 2 4 . Energy Gun 2 | 1 1 . Energy Cannon . | . . . Ballistic Gun 3 | 1 2 . Ballistic Cannon . | . . . Launcher 1 | . 1 . Special Weapon . | . . . Impact Weapon . | . . . Slashing Weapon . | . . . Piercing Weapon . | . . . Special Melee Weapon . | . . . Unidentified Prototypes . | . . . Parts Lost 7 | . 2 5 Power 2 | . 1 1 Propulsion 2 | . . 2 Utility 1 | . . 1 Weapon 2 | . 1 1 Highest Loss Streak 5 | . 1 5 To Critical Strikes . | . . . Average Backups 12 | 6 11 19 Power 1 | 1 1 1 Propulsion 5 | 4 5 8 Utility 2 | . 2 6 Weapon 2 | 1 2 4 Tool/Special . | . . . Unused Backups 20 | 4 3 13 Power 3 | 1 1 1 Propulsion 8 | 2 1 5 Utility 6 | 1 . 5 Weapon 3 | . 1 2 Tool/Special . | . . . Average Slot Usage (%) 98 | . 99 82 Engine 13 | . 13 9 Treads 13 | . 13 15 Leg 5 | . 5 . Wheel 8 | . 8 8 Device 13 | . 14 7 Storage 14 | . 14 14 Energy Gun 2 | . 2 . Ballistic Gun 25 | . 24 26 Peak Build Rating 9 | 7 9 9 Average Rating 7 | 6 7 7 On Entrance 7 | 6 7 9 Naked Turns . | . . . Heaviest Build 50 | 13 50 48 Greatest Support 40 | 20 40 16 Greatest Overweight (x) 3 | . 3 2 Average Overweight (x) 1 | . 1 2 Largest Inventory Capacity 20 | 8 20 20 Average Capacity 16 | 8 16 20 Most Carried 20 | 7 20 20 Average Carried 12 | 6 11 19 Final Capacity 20 | 8 20 20 Final Carried 20 | 6 20 18 Class Distribution -------------------- 100% | Mutant Dominant Class ---------------- Mutant | -10/Materials Mutant | -10/Subcaves Resources | -11 -10 -10 ----------- Run | Yrd Mat Sub Matter Collected 716 | 236 480 . Remotely . | . . . Salvage Created 904 | 86 758 60 Parts 57 | 4 42 11 Haulers Intercepted 2 | . 2 . Recyclers Shooed . | . . . Parts Field Recycled . | . . . Retrieved Matter . | . . . Parts Self-Destructed 1 | . . 1 Prevented . | . . . Kills | -11 -10 -10 ------- Run | Yrd Mat Sub Combat Hostiles Destroyed 22 | . 20 2 Guns 16 | . 14 2 AOE 6 | . 6 . Classes Destroyed 8 | 2 5 1 Worker 3 | . 3 . Tunneler 1 | 1 . . Hauler 2 | . 2 . Recycler 1 | 1 . . Watcher 1 | . 1 . Swarmer 6 | . 6 . Grunt 14 | . 14 . Subdweller 2 | . . 2 Best Kill Streak 8 | 1 8 2 Combat Bots Only 6 | . 6 2 Max Kills in Single Turn 4 | 1 4 1 Gunslinging . | . . . Exploded 2 | . 2 . Melee . | . . . Uniques/NPCs Destroyed . | . . . Combat | -11 -10 -10 -------- Run | Yrd Mat Sub Hostile Shots Fired 93 | . 60 33 Missed 27 | . 18 9 Hits 66 | . 42 24 Projectile 66 | . 42 24 Critical Strikes 2 | . . 2 Damage Taken 1048 | . 502 546 Core 261 | . 94 167 Absorbed by Shields . | . . . Regen/Repaired (Parts) 74 | . 74 . Core Remaining (%) 100 | 100 . . Volleys Fired 85 | 7 60 18 Largest 2 | 2 2 2 Hottest 80 | 80 60 40 Shots Fired 160 | 14 112 34 Gun 152 | 14 104 34 Cannon . | . . . Launcher 8 | . 8 . Special . | . . . Kinetic 139 | 6 99 34 Thermal 11 | 6 5 . Explosive 8 | . 8 . Electromagnetic 2 | 2 . . Robot Hit Streak 19 | 5 13 19 Robot Miss Streak 4 | 4 3 1 Penetration Max . | . . . Secondary Targets 2 | . . 2 Max Gunslinging Chain 1 | . . 1 Shots Hit Robots 119 | 8 78 33 Core Hits 57 | 3 47 7 Critical Kills 1 | . 1 . Critical Parts Destroyed . | . . . Critical Strikes 2 | 1 1 . Destroy 1 | . 1 . Corrupt 1 | 1 . . Melee Attacks . | . . . Impact . | . . . Slashing . | . . . Piercing . | . . . Sneak Attacks . | . . . Combat Hostiles . | . . . Follow-up Attacks . | . . . Damage Inflicted 1710 | 79 1431 200 Guns 928 | 79 649 200 Cannons . | . . . Explosions 778 | . 778 . Melee . | . . . Ramming 4 | . 4 . Kinetic 845 | 34 611 200 Thermal 442 | 32 410 . Explosive 406 | . 406 . Electromagnetic 13 | 13 . . Impact . | . . . Slashing . | . . . Piercing . | . . . Highest Corruption . | . . . Average Corruption . | . . . Corruption Purged . | . . . Corruption Blocked . | . . . Overload Shots . | . . . Overflow Damage 96 | . 96 . Projectiles . | . . . Explosions 96 | . 96 . Melee . | . . . Knockbacks . | . . . Impact . | . . . Kinetic . | . . . Secondary . | . . . Self-Inflicted Damage 54 | . 54 . Shots 3 | . 3 . Rammed 2 | . 2 . Targets Rammed 2 | . 2 . Kicked . | . . . Crushed . | . . . Highest Temperature 40 | 40 26 8 Average Temperature 11 | 20 7 8 Received Heat Transfer 354 | . 201 153 Siege Activations . | . . . Martial Activations . | . . . Shielding Activations . | . . . Robots Disrupted . | . . . Combat Hostiles . | . . . Robots Corrupted . | . . . Combat Hostiles . | . . . Parts Fried . | . . . Impact Corruptions . | . . . Robots Melted . | . . . Combat Hostiles . | . . . Parts Melted 1 | . 1 . Heat Transferred 400 | 75 325 . Parts Sabotaged . | . . . Parts Stolen . | . . . Parts Stripped . | . . . Power Chain Reactions . | . . . Alert | -11 -10 -10 ------- Run | Yrd Mat Sub Maximum Alert Level 1 | . 1 . Low Security (%) 46 | 100 44 . Level 1 53 | . 55 . Level 2 . | . . . Level 3 . | . . . Level 4 . | . . . Level 5 . | . . . High Security . | . . . Max Security . | . . . Peak Influence 329 | 5 329 . Initial . | . . . Average 180 | 2 189 . Influence Increases 740 | 10 730 . Destroy 0b10 Robot/C 400 | . 400 . Destroy 0b10 Robot/NC 40 | 10 30 . Destroy Leader 76 | . 76 . Successful Hack 28 | . 28 . Select Force Hacks 60 | . 60 . Disable Machine 45 | . 45 . Destroy Structure 61 | . 61 . Lose Combat Pursuer 30 | . 30 . Influence Decreases 701 | 10 480 211 Entered New Map 121 | . . 121 Time Decay 510 | 10 460 40 Lost Part 70 | . 20 50 Squads Dispatched 4 | . 4 . Investigation 4 | . 4 . Extermination . | . . . Reinforcement . | . . . Assault . | . . . Garrison . | . . . Intercept . | . . . Searches Triggered . | . . . Construction Impeded . | . . . Haulers Reinforced . | . . . Active Scanning Responses . | . . . Cargo Convoy Interrupts . | . . . Stealth | -11 -10 -10 --------- Run | Yrd Mat Sub Distress Signals 3 | . 3 . Communications Jammed . | . . . Distress Signals . | . . . Times Spotted 35 | . 30 5 Peak Tracking Total 5 | . 5 4 Tactical Retreats 2 | . 2 . Traps | -11 -10 -10 ------- Run | Yrd Mat Sub Traps Triggered 2 | . 2 . Indirectly . | . . . Trap Hack Attempts . | . . . Triggered . | . . . Disarmed . | . . . Reprogrammed . | . . . Reused . | . . . Traps Extracted . | . . . Installed . | . . . Triggered . | . . . Machines | -11 -10 -10 ---------- Run | Yrd Mat Sub Machines Disabled 3 | . 3 . Max in Single Turn 2 | . 2 . Machines Repaired . | . . . Machines Dismantled . | . . . Machines Sabotaged . | . . . Overloaded Fab Kills . | . . . Hacking | -11 -10 -10 --------- Run | Yrd Mat Sub Machines Accessed 10 | . 10 . Terminals 7 | . 7 . Fabricators . | . . . Repair Stations 1 | . 1 . Recycling Units 2 | . 2 . Scanalyzers . | . . . Garrison Access . | . . . Total Hacks 25 | . 25 . Successful 15 | . 15 . Failed 9 | . 9 . Catastrophic 1 | . 1 . Database Lockouts 1 | . 1 . Manual 20 | . 20 . Terminals 21 | . 21 . Fabricators . | . . . Repair Stations 2 | . 2 . Recycling Units 2 | . 2 . Scanalyzers . | . . . Garrison Access . | . . . Terminal Hacks 4 | . 4 . Robot Analysis 1 | . 1 . Recycling Unit Index 1 | . 1 . Locate Traps 2 | . 2 . Fabricator Hacks . | . . . Repair Station Hacks 2 | . 2 . Scan Component 1 | . 1 . Repair 1 | . 1 . Recycling Unit Hacks . | . . . Scanalyzer . | . . . Garrison Access Hacks . | . . . Unauthorized Hacks 9 | . 9 . Terminals 7 | . 7 . Botnet 1 | . 1 . Operators 1 | . 1 . Skim 5 | . 5 . Fabricators . | . . . Repair Stations . | . . . Recycling Units 2 | . 2 . Tunnel 2 | . 2 . Scanalyzers . | . . . Garrison Access . | . . . Data Cores Recovered . | . . . Used . | . . . Hacking Detections 6 | . 6 . Full Trace Events . | . . . Feedback Events . | . . . Feedback Blocked . | . . . Robot Schematics Acquired . | . . . Robots Built . | . . . Authchips . | . . . Time . | . . . Total Robot Build Rating . | . . . Part Schematics Acquired . | . . . Parts Built . | . . . Authchips . | . . . Time . | . . . Total Part Build Rating . | . . . Parts Repaired 1 | . 1 . Time 26 | . 26 . Parts Recycled . | . . . Recycled Matter . | . . . Retrieved Matter . | . . . Retrieved Components . | . . . Parts Scanalyzed . | . . . Part Schematics Acquired . | . . . Parts Damaged . | . . . Bothacking | -11 -10 -10 ------------ Run | Yrd Mat Sub Used RIF Installer . | . . . Robots Hacked . | . . . Non-combat . | . . . Combat . | . . . Robot Hacks Applied . | . . . Relay Couplers Released . | . . . Fabnet Peak Effective % . | . . . Robots Rewired . | . . . Allies Hacked . | . . . Hacks Repelled . | . . . Allies | -11 -10 -10 -------- Run | Yrd Mat Sub Total Allies . | . . . Largest Group . | . . . Highest-Rated Group . | . . . Highest-Rated Ally . | . . . Total Orders . | . . . Ally Attacks . | . . . Total Damage . | . . . Kills . | . . . Allies Corrupted . | . . . Allies Melted . | . . . Intel | -11 -10 -10 ------- Run | Yrd Mat Sub Active Infowar (turns) 1540 | 19 1484 37 Seismic 1540 | 19 1484 37 Robot Analysis Total 1 | . 1 . Derelict Logs Recovered . | . . . Drone Launches . | . . . Drone Recoveries . | . . . Exploration | -11 -10 -10 ------------- Run | Yrd Mat Sub Turns Passed 1643 | 70 1484 89 Spaces Moved 894 | 38 826 30 Core . | . . . Treads 130 | . 130 . Legs 254 | 38 216 . Wheels 510 | . 480 30 Hover . | . . . Flight . | . . . Fastest Speed 120 | 120 120 130 Average Speed 131 | 120 132 130 Slowest Speed 160 | 120 160 130 Overloaded Moves . | . . . Propulsion Burnouts . | . . . Robots Hopped . | . . . Potential Cave-ins . | . . . Cave-ins Triggered . | . . . Exploration Rate (%) 34 | 3 94 6 Regions Visited 2 Branch Regions 1 Pre-discovered Areas 3 | . 2 1 Known Exits Taken 1 | . 1 . Unknown Exits Taken 1 | 1 . . Scrap Searched . | . . . Spaces Dug 22 | . 22 . Terrain Destroyed 74 | . 74 . Melee . | . . . Projectile . | . . . AOE 74 | . 74 . Terrain Rammed . | . . . Walls Destroyed . | . . . Machines Disabled . | . . . Actions | -11 -10 -10 --------- Run | Yrd Mat Sub Total 1218 | 48 1117 53 Wait 195 | . 193 2 Move 892 | 37 825 30 Hop . | . . . Pick Up 17 | 1 16 . Fast Attach 3 | . 3 . Attach 4 | 1 1 2 Detach . | . . . Swap 16 | 2 13 1 Drop 4 | . 4 . Fire 85 | 7 60 18 Melee . | . . . Ram . | . . . Kick . | . . . Crush 2 | . 2 . Escape Stasis . | . . . Rewire . | . . . Trap . | . . . Miscellaneous . | . . . Route ------- -11/Scrapyard -10/Materials (discovered 5 exits: *Mat x3 / [*Min] / *Sub) -10/Subcaves History --------- Turn | Location | Event 1 | -11/Scrapyard | Discovered new exit (range 2) 71 | -11/Scrapyard | Entered Materials 271 | -10/Materials | Discovered new exit (range 8) 318 | -10/Materials | Build established: Mutant 533 | -10/Materials | Discovered new exit (range 16) 586 | -10/Materials | Central database locked down 791 | -10/Materials | Discovered new exit (range 16) 1056 | -10/Materials | Discovered new exit (range 10) 1169 | -10/Materials | Learned 4 Recycling zone layouts 1295 | -10/Materials | Learned Storage trap positions 1344 | -10/Materials | Identified exit to Materials 1375 | -10/Materials | Repaired Lgt. Assault Rifle 1381 | -10/Materials | Learned Storage terminal intel 1406 | -10/Materials | Loaded intel: 22 trap records 1419 | -10/Materials | Identified exit to Subcaves 1442 | -10/Materials | Learned Storage emergency access door positions 1476 | -10/Materials | Learned Storage emergency access door positions 1555 | -10/Materials | Entered Subcaves 1556 | -10/Subcaves | Approached by a straggling Scientist 1558 | -10/Subcaves | Learned location of Zion (-7) 1558 | -10/Subcaves | Met a Zionite searching for "candidates" 1592 | -10/Subcaves | A Subdweller sparked back to life 1592 | -10/Subcaves | A Subdweller sparked back to life 1592 | -10/Subcaves | A Subdweller sparked back to life 1633 | -10/Subcaves | Core integrity fell below 50% 1641 | -10/Subcaves | Core integrity fell below 20% 1644 | -10/Subcaves | Destroyed by VH-UBT(R) with Subdweller Laser Last Messages --------------- 01609_ IH-U94(R) destroyed. 01612_ VH-UBT(R) affixes Scrap Shield Fragment to Scrap Shield. 01613_ RN-PRI(R) affixes Scrap Shield Fragment to Scrap Shield. 01614_ Ion Engine destroyed. 01614_ RN-PRI(R) destroyed. 01614_ Switching to secondary target: VH-UBT(R). 01617_ VH-UBT(R) suffers critical hit (Burn). 01621_ VH-UBT(R) affixes Scrap Shield Fragment to Scrap Shield. 01625_ Subatomizers dissect the Prototype Energy Cannon. 01626_ VH-UBT(R) affixes Scrap Shield Fragment to Scrap Shield. 01630_ Com. Wheel destroyed. 01634_ Critical hit (Burn: +37). 01637_ Subatomizers dissect the Prototype Energy Cannon. 01638_ Lgt. Assault Rifle destroyed. Map ----- +----------------------------------------------------+ | ?????????????????????????????????????????????????? | | ?????????????????????????????????????????????????? | | ?????????????????????????????????????????????????? | | ?????????????????????????????????????????????????? | | ?????????????????????????????????????????????????? | | ?????????????????????????????????????????????????? | | ????????????????????????????????? ????????????? | | ????????????????????????????????" ????????????? | | ???????????????????????????????" ????????????? | | ???????????????????????????????" ????????????? | | ???????????????????????????????? ????????????? | | ???????????????????????????????? ????????????? | | ???????????????????????????????? ????????????? | | ????????????????????????????????? ????????????? | | ????????????????????????????????? #????????????? | | ?????????????????????????????????# ????????????? | | ????????????????????????????????## ????????????? | | ?????????????????????????????"### ####????????? | | ???????????????????????????##" ??# # #????????? | | ?????????????????????##<####""#### ##???????? | | ????????????????????##"" " # ##??????? | | ????????????????????# < " #??????? | | ?????????????????????# R ### ###??????? | | ?????????????????????# !&/*###### ##????????? | | ????????????????????# #<&%%[&;##?# ##?????????? | | ?????????????????????# [@*!!; #?# #??????????? | | ????????????????????## !=&%]; #?# ##??????????? | | ????????????????????# ;*& ; #?## ##???????##?? | | ????????????????????## ; ### #????? ?? | | ?????????????????????# z # #??? | | ???????????????????### ## ##? ? | | ???????????????????# ## # # #??? | | ???????????????????## R #???? | | ????????????????????#< #??? | | ?????????????????# ; ;;# #??? | | ????????????????" ##< # ## #??? | | ????????????????##??## ? | | ????????????????????# ### ? | | ???????????????????# #### ## #??? #? | | ???????????????????#####???###?? #??????? | | ???????????????????????????????######## #??????? | | ???????????????????????????????????????####??????? | | ?????????????????????????????????????????????????? | | ?????????????????????????????????????????????????? | | ?????????????????????????????????????????????????? | | ?????????????????????????????????????????????????? | | ?????????????????????????????????????????????????? | | ?????????????????????????????????????????????????? | | ?????????????????????????????????????????????????? | | ?????????????????????????????????????????????????? | +----------------------------------------------------+ Best States ------------- Heat Dissipation 25 Energy Generation 10 Energy Capacity 250 Matter Stores 300 Matter Capacity 300 Sight Range 16 Terrain Scan Density 10 Evasion (%) 55 Recoil Reduction 2 Item Schematics ----------------- None Robot Schematics ------------------ None Fabricated ------------ Nothing Repaired ---------- Lgt. Assault Rifle | 7% | -10/Materials Alien Tech Used ----------------- None Achievements -------------- None Challenges ------------ None Game ------ Seed GaussTrackerTrap Manual? 0 Play Time 00:14:37 Cumulative 631.3 hours Start 2025.06.18 @ 22:23:11 End 2025.06.18 @ 22:36:24 Sessions 1 Manual Loads 0 Difficulty Rogue Special Mode None Game No. 144 Rogue 104 Adventurer 4 Explorer 36 Win Type - Total 49 Types 26/6/5/2/2/3/2/1/1/1 Lore% 78 Gallery% 81 Achievement% 91 Wizard Run 0 Options --------- Layout 2 ASCII 0 Keyboard 1 Movement Vi Keybinds 0 Fullscreen 2 Font 32/SmallcapsGlow Map View 50x44 Zoom Use 0% Tactical HUD 1 Map Filters NONE Filters NONE Steam 1 RUN: 942a2190-59b4-4a36-808e-17090847480d